bitfinex/quotes_ETHUSD_20250623
["timestamp","ask_amount","ask_price","bid_price","bid_amount"]
[1750719048001,0.5,2402.1,2401.1,2.06657986]
[1750719048191,0.40837875,2402.4,2402.0,37.73418666]
[1750719048380,30.0,2402.2,2402.0,34.40098666]
[1750719048583,30.0,2402.2,2402.0,33.04578666]
[1750719048902,30.5,2402.1,2402.0,26.77062949]
[1750719049106,30.86822527,2402.1,2402.0,26.77062949]
[1750719049266,39.6946916,2402.1,2402.0,26.77062949]
[1750719049464,30.8606916,2402.1,2402.0,26.77062949]
[1750719049664,41.58346633,2402.1,2402.0,26.77062949]
[1750719049910,41.58246633,2402.1,2402.0,26.77062949]
[1750719050093,0.55,2401.9,2401.0,0.0947656]
[1750719050279,10.0,2401.5,2401.0,0.0947656]
[1750719050474,30.0,2401.4,2401.0,0.0947656]
[1750719051085,30.0,2401.4,2400.7,0.0947656]
[1750719052025,30.0,2401.7,2400.7,0.0947656]
[1750719053335,40.0,2401.5,2400.7,0.0947656]
[1750719053481,30.0,2401.3,2400.7,0.0947656]
[1750719054009,30.0,2401.3,2400.8,2.06056677]
[1750719054821,30.0,2401.2,2400.8,2.06056677]
[1750719055019,30.05027976,2401.2,2400.8,2.06056677]
[1750719055196,30.0,2401.1,2400.8,2.06056677]
[1750719055716,30.0,2401.2,2400.8,2.06056677]
[1750719055929,30.0,2401.3,2400.8,2.06056677]
[1750719056125,10.0,2401.2,2400.8,2.06056677]
[1750719056331,30.0,2401.1,2400.8,2.06056677]
[1750719057108,10.0,2401.4,2400.9,2.11724033]
[1750719057304,30.0,2401.3,2400.9,2.11724033]
[1750719057620,30.0,2401.5,2400.9,2.11724033]
[1750719058499,30.0,2401.3,2400.9,2.11724033]
[1750719061027,1.2,2401.1,2400.9,2.11724033]
[1750719061229,30.0,2401.0,2400.9,2.11724033]
[1750719062091,1.2,2401.1,2400.9,2.11724033]
[1750719062905,2.736,2401.9,2400.9,2.11724033]
[1750719063104,30.0,2401.7,2400.9,2.11724033]
[1750719063342,30.0,2401.6,2400.9,2.11724033]
[1750719064437,30.0,2401.6,2400.9,3.64684033]
[1750719065620,30.0,2401.6,2400.9,7.811866]
[1750719065827,0.28582664,2401.7,2401.3,2.0410181]
[1750719066027,0.28582664,2401.7,2401.2,1.5296]
[1750719066028,0.28582664,2401.7,2401.6,4.13284007]
[1750719066228,0.28582664,2401.7,2401.6,3.58284007]
[1750719066679,0.28582664,2401.7,2401.4,2.0389437]
[1750719067028,0.28582664,2401.7,2401.4,2.66539807]
[1750719067337,0.28582664,2401.7,2401.6,2.05324007]
[1750719067644,0.28582664,2401.7,2401.6,3.66704007]
[1750719068139,0.28582664,2401.7,2401.6,8.3809308]
[1750719068556,0.04,2401.9,2401.8,0.55]
[1750719069360,0.04,2401.9,2401.8,1.38808667]
[1750719069541,0.04,2401.9,2401.8,2.03494503]
[1750719069972,0.04,2401.9,2401.7,1.6138]
[1750719069973,0.04,2401.9,2401.4,2.0389437]
[1750719070147,30.0,2401.8,2401.4,2.0389437]
[1750719070745,0.04,2401.9,2401.4,2.0389437]
[1750719071370,0.04,2401.9,2401.8,2.03494503]
[1750719071672,0.04,2401.9,2401.4,2.0389437]
[1750719073373,0.3257,2401.9,2401.3,2.0410181]
[1750719074076,0.04,2401.9,2401.3,2.0410181]
[1750719074282,30.0,2401.8,2401.3,2.0410181]
[1750719074454,0.04,2401.9,2401.3,2.0410181]
[1750719074843,30.0,2401.8,2401.2,2.03368091]
[1750719075044,0.04,2401.9,2401.4,2.0389437]
[1750719075256,0.04,2401.9,2401.8,2.58494503]
[1750719075446,0.04,2401.9,2401.8,3.64864503]
[1750719077239,0.04,2401.9,2401.8,4.19864503]
[1750719079544,0.04,2401.9,2401.8,8.36218903]
[1750719079750,0.04,2401.9,2401.8,9.88427682]
[1750719080063,0.04,2401.9,2401.8,5.72073282]
[1750719080645,0.04,2401.9,2401.8,4.19864503]
[1750719080954,0.04,2401.9,2401.8,3.64864503]
[1750719081155,0.04,2401.9,2401.8,2.03494503]
[1750719081484,0.04,2401.9,2401.7,2.00322108]
[1750719082275,0.04,2401.9,2401.3,2.0410181]
[1750719082477,0.04,2401.9,2401.3,12.0410181]
[1750719082660,30.0,2401.8,2401.3,2.0410181]
[1750719082862,30.0,2401.8,2401.2,1.5383]
[1750719083159,0.04,2401.9,2401.3,2.0410181]
[1750719084784,0.3257,2401.9,2401.3,2.0410181]
[1750719086476,0.04,2401.9,2401.3,12.0410181]
[1750719088291,0.04,2401.9,2401.3,2.0410181]
[1750719089626,21.8,2402.5,2401.7,0.5]
[1750719089818,21.8,2402.6,2401.7,2.1581]
[1750719090319,21.8,2402.6,2401.7,0.5]
[1750719091118,21.8,2402.6,2401.5,2.08411018]
[1750719091709,31.8,2402.4,2401.3,2.0410181]
[1750719091911,21.8,2403.0,2401.6,3.69184007]
[1750719092096,2.635,2403.1,2402.1,0.55]
[1750719092296,21.8,2403.5,2402.3,0.5]
[1750719092495,21.8,2403.5,2402.2,1.6386]
[1750719093018,21.8,2403.5,2402.2,2.1386]
[1750719093225,10.0,2403.2,2402.2,1.6386]
[1750719093382,10.0,2403.0,2402.2,1.6386]
[1750719093588,10.0,2402.8,2402.2,1.6386]
[1750719093817,21.8,2402.7,2402.2,1.6386]
[1750719094236,21.8,2402.7,2402.3,0.5]
[1750719094585,10.0,2402.8,2401.7,0.5]
[1750719094586,21.8,2402.5,2401.7,0.5]
[1750719094798,21.8,2402.5,2401.9,0.55]
[1750719095028,21.8,2402.7,2401.9,1.31886]
[1750719095225,10.0,2402.9,2402.1,0.55]
[1750719095421,21.8,2403.0,2402.1,0.55]
[1750719095422,21.8,2402.8,2402.1,0.55]
[1750719095624,21.8,2403.5,2402.3,1.6386]
[1750719095829,10.007,2403.6,2402.3,1.6386]
[1750719095830,10.0,2403.0,2402.3,1.6386]
[1750719096023,21.8,2402.9,2402.3,1.6386]
[1750719096426,10.0,2402.6,2402.3,1.6386]
[1750719096599,21.8,2402.5,2402.3,1.6386]
[1750719097095,21.8,2403.3,2402.2,0.5]
[1750719097295,31.8,2403.1,2402.3,0.5]
[1750719097498,0.55,2403.0,2401.8,1.5307]
[1750719097800,21.8,2402.9,2401.8,2.0307]
[1750719098124,21.8,2402.7,2401.8,2.0307]
[1750719098633,21.8,2402.2,2401.8,2.0307]
[1750719099428,4.0,2402.3,2401.8,2.0307]
[1750719099633,21.8,2402.2,2401.8,4.06564503]
[1750719103235,4.0,2402.3,2401.8,4.06564503]
[1750719103434,21.8,2402.2,2401.8,4.06564503]
[1750719104548,4.0,2402.3,2401.8,4.47220953]
[1750719105336,4.0,2402.3,2401.8,4.06564503]
[1750719106161,21.8,2402.2,2401.8,1.5307]
[1750719106325,21.8,2402.2,2401.5,3.69191018]
[1750719106526,21.8,2402.0,2401.5,3.69191018]
[1750719106966,21.8,2402.0,2401.6,2.05324007]
[1750719107427,21.8,2402.0,2401.7,0.5]
[1750719108161,21.8,2402.0,2401.6,2.05324007]
[1750719108470,21.8,2402.2,2401.6,2.05324007]
[1750719108631,21.76,2402.2,2402.1,0.04]
[1750719108947,31.76,2402.2,2402.1,0.04]
[1750719109148,21.76,2402.2,2402.1,0.04]
[1750719114841,29.9,2402.2,2402.1,0.04]
[1750719115044,30.45,2402.2,2402.1,0.04]
[1750719115458,29.9,2402.2,2402.1,0.04]
[1750719115669,30.45,2402.2,2402.1,0.04]
[1750719118810,8.69,2402.2,2402.1,0.04]
[1750719118965,30.45,2402.2,2402.1,0.04]
[1750719119797,8.69,2402.2,2402.1,0.04]
[1750719120099,30.45,2402.2,2402.1,0.04]
[1750719121267,21.76,2402.2,2402.1,0.04]
[1750719121606,32.462,2402.2,2402.1,0.04]
[1750719124966,33.012,2402.2,2402.1,0.04]
[1750719126715,40.872,2402.2,2402.1,0.04]
[1750719129752,40.322,2402.2,2402.1,0.04]
[1750719129953,40.872,2402.2,2402.1,0.04]
[1750719133153,40.872,2402.2,2402.1,0.34]
[1750719134577,40.838,2402.2,2402.1,0.34]
[1750719135233,19.078,2402.2,2402.1,0.34]
[1750719135439,40.838,2402.2,2402.1,0.34]
[1750719137554,41.35364935,2402.2,2402.1,0.34]
[1750719138421,40.279,2402.2,2402.1,0.34]
[1750719140487,29.62,2402.2,2402.1,0.34]
[1750719140668,40.27,2402.2,2402.1,0.34]
[1750719140976,21.76,2402.2,2402.1,1.9141]
[1750719141394,4.0,2402.3,2402.2,1.05]
[1750719141596,20.0934,2403.7,2403.1,0.5]
[1750719141792,8.066,2403.6,2403.2,1.5741]
[1750719141965,20.0934,2403.7,2403.2,1.5741]
[1750719142154,8.065,2404.0,2403.4,0.5]
[1750719142352,20.0934,2403.9,2403.5,1.5741]
[1750719144291,20.0934,2403.9,2403.6,0.5]
[1750719145000,20.0934,2403.9,2403.5,1.5741]
[1750719145001,8.058,2403.8,2403.5,1.5741]
[1750719145183,20.0934,2403.7,2402.9,1.5741]
[1750719145494,20.0934,2403.5,2402.9,1.5741]
[1750719145707,20.0934,2403.3,2402.9,1.5741]
[1750719145902,20.0934,2403.1,2402.9,1.5741]
[1750719146096,20.0934,2403.1,2403.0,0.5]
[1750719146600,20.0934,2403.1,2402.9,1.5741]
[1750719146802,20.0934,2403.1,2403.0,0.5]
[1750719146982,2.579,2403.4,2403.1,0.5]
[1750719147300,28.1414,2403.3,2402.9,2.0741]
[1750719147467,20.0934,2403.2,2402.9,2.0741]
[1750719147666,20.0934,2403.0,2402.9,2.0741]
[1750719147898,0.55,2404.2,2402.9,2.0741]
[1750719148201,20.0934,2403.8,2403.2,0.5]
[1750719148407,10.625,2403.9,2403.2,0.5]
[1750719148408,10.623,2403.7,2403.2,0.5]
[1750719148606,20.0934,2403.9,2403.2,0.5]
[1750719148805,20.0934,2403.7,2403.2,0.5]
[1750719149011,20.0934,2403.5,2403.2,0.5]
[1750719149310,2.579,2403.8,2403.0,0.5]
[1750719149311,20.0934,2403.3,2403.0,0.5]
[1750719149516,8.042,2403.2,2403.0,0.5]
[1750719150174,20.0934,2403.1,2402.7,0.5]
[1750719150796,8.038,2403.0,2402.7,0.5]
[1750719151000,20.0934,2402.9,2402.7,0.5]
[1750719151421,20.0934,2402.9,2402.6,1.5247]
[1750719151797,20.0934,2402.9,2402.7,0.5]
[1750719151995,20.0934,2402.9,2402.6,1.5247]
[1750719152507,20.0934,2402.9,2402.7,0.5]
[1750719152703,20.0934,2402.9,2402.6,1.5247]
[1750719152909,20.0934,2402.9,2402.7,0.5]
[1750719153109,20.0934,2402.9,2402.6,1.5247]
[1750719153833,20.0934,2402.9,2402.7,0.5]
[1750719156335,20.0934,2403.5,2402.9,0.5]
[1750719156541,20.0934,2403.3,2402.9,0.5]
[1750719156739,20.0934,2403.1,2402.9,0.5]
[1750719156940,2.523,2403.4,2403.0,1.5929]
[1750719157242,20.0934,2403.3,2403.0,1.5929]
[1750719157738,20.0934,2403.3,2403.2,0.5]
[1750719158331,20.0934,2403.5,2403.2,0.5]
[1750719158532,20.0934,2403.5,2403.4,0.5]
[1750719158728,20.0934,2403.5,2402.7,2.155]
[1750719159040,20.0934,2403.3,2402.8,0.5]
[1750719159200,20.040202,2403.5,2403.0,0.5]
[1750719159403,20.040202,2403.4,2403.0,0.5]
[1750719159606,9.4716,2403.6,2402.8,0.5]
[1750719159837,30.040202,2403.4,2402.8,0.5]
[1750719160044,24.040202,2403.2,2403.1,0.5]
[1750719160543,20.040202,2403.1,2402.8,0.5]
[1750719160703,20.040202,2403.1,2403.0,0.5]
[1750719164883,28.042202,2403.1,2402.8,0.5]
[1750719165025,20.040202,2403.0,2402.7,1.655]
[1750719165429,20.040202,2403.0,2402.8,0.5]
[1750719167280,20.040202,2403.1,2402.8,0.5]
[1750719167940,20.040202,2403.1,2403.0,0.5]
[1750719172570,11.981,2403.2,2403.0,0.5]
[1750719172871,20.040202,2403.1,2403.0,0.5]
[1750719173900,21.674002,2403.1,2402.2,1.5069]
[1750719174206,21.674002,2403.1,2402.9,0.5]
[1750719174207,28.012202,2403.0,2402.9,0.5]
[1750719174364,20.040202,2402.9,2402.7,1.6442]
[1750719174567,20.040202,2402.9,2402.8,0.5]
[1750719174870,20.040202,2403.1,2402.8,0.5]
[1750719175074,20.040202,2403.1,2403.0,0.5]
[1750719175603,20.040202,2403.1,2402.7,1.6442]
[1750719175892,20.040202,2403.1,2403.0,0.5]
[1750719176066,28.008202,2403.1,2403.0,0.5]
[1750719176480,20.040202,2403.1,2403.0,0.5]
[1750719176684,4.0,2403.2,2403.1,1.6442]
[1750719176878,4.0,2403.2,2403.1,1.85862]
[1750719177404,7.963,2403.8,2403.1,1.85862]
[1750719177596,20.040202,2403.7,2403.4,0.5]
[1750719178107,7.963,2403.8,2403.5,1.6126]
[1750719178108,20.040202,2403.8,2403.5,1.6126]
[1750719178303,7.961,2404.2,2403.7,0.5]
[1750719178510,20.040202,2404.1,2403.7,0.5]
[1750719178911,20.040202,2404.1,2403.9,0.5]
[1750719179490,27.997202,2404.4,2404.0,1.6126]
[1750719179811,20.040202,2404.7,2404.5,0.5]
[1750719180013,27.996202,2404.6,2404.5,0.5]
[1750719180181,17.955,2404.8,2404.5,0.5]
[1750719180381,30.040202,2404.7,2404.5,0.5]
[1750719180616,20.040202,2404.7,2404.5,0.5]
[1750719181115,20.040202,2404.7,2404.5,2.1222]
[1750719181918,7.955,2404.8,2404.7,0.5]
[1750719181919,20.040202,2404.8,2404.7,0.5]
[1750719183814,0.04,2404.9,2404.7,0.71222]
[1750719184915,0.04,2404.9,2404.8,1.5079]
[1750719185817,0.04,2404.9,2404.7,0.5]
[1750719186115,20.040202,2404.8,2404.7,0.5]
[1750719186921,20.040202,2404.8,2404.5,0.5]
[1750719187227,20.040202,2404.6,2404.2,0.5]
[1750719187403,20.040202,2404.5,2404.0,0.5]
[1750719187605,7.933,2404.4,2404.0,0.5]
[1750719187807,30.040202,2404.3,2404.0,0.5]
[1750719187996,20.040202,2404.3,2404.0,0.5]
[1750719188196,7.931,2404.2,2404.1,0.5]
[1750719188400,1.5665,2404.6,2404.1,0.5]
[1750719188649,30.438202,2404.5,2404.1,0.5]
[1750719188944,20.040202,2404.4,2404.1,0.5]
[1750719189155,20.040202,2404.5,2404.1,0.5]
[1750719189315,20.040202,2404.5,2404.0,1.5216]
[1750719189316,20.040202,2404.7,2404.4,0.5]
[1750719189512,30.040202,2404.5,2404.4,0.5]
[1750719189729,20.040202,2404.5,2404.4,0.5]
[1750719190100,20.040202,2404.5,2403.7,0.55]
[1750719190101,0.04,2404.9,2404.7,1.6655]
[1750719190342,0.04,2404.9,2404.1,3.019]
[1750719190343,0.04,2404.9,2404.8,2.38205]
[1750719190827,0.04,2404.9,2404.8,2.93205]
[1750719192244,0.04,2404.9,2404.8,2.38205]
[1750719193302,0.04,2404.9,2404.8,2.93205]
[1750719194609,0.04,2404.9,2404.8,2.38205]
[1750719196347,0.04,2404.9,2404.8,2.1655]
[1750719200759,0.04,2404.9,2404.8,2.7155]
[1750719202106,0.04,2404.9,2404.8,2.1655]
[1750719203727,20.040202,2404.8,2404.3,1.5055]
[1750719203929,21.620302,2404.8,2404.4,0.5]
[1750719204088,21.620302,2404.6,2404.3,0.5]
[1750719204407,20.040202,2404.5,2404.3,0.5]
[1750719205089,1.6319,2404.9,2404.7,0.5]
[1750719205496,0.04,2404.9,2404.7,0.5]
[1750719206280,20.040202,2404.8,2404.7,0.5]
[1750719208522,0.04,2404.9,2404.7,0.5]
[1750719208697,20.040202,2404.8,2404.7,0.5]
[1750719209722,20.040202,2404.6,2404.4,0.5]
[1750719209886,20.040202,2404.6,2404.1,0.5]
[1750719210084,20.040202,2404.6,2404.4,0.5]
[1750719210287,1.5963,2404.5,2403.9,0.5]
[1750719210503,30.040202,2404.3,2404.1,0.5]
[1750719210711,20.040202,2404.3,2404.1,0.5]
[1750719210911,20.040202,2404.3,2403.6,2.07540358]
[1750719210912,20.040202,2404.3,2403.9,0.5]
[1750719211125,24.055502,2404.2,2404.1,0.5]
[1750719213103,22.459202,2404.2,2404.1,0.5]
[1750719213506,20.040202,2404.8,2404.1,0.5]
[1750719213725,0.04,2404.9,2404.1,0.5]
[1750719213726,30.040202,2404.6,2404.1,0.5]
[1750719213933,20.040202,2404.6,2404.5,0.5]
[1750719214107,20.040202,2404.6,2404.2,0.5]
[1750719214314,20.040202,2404.6,2404.5,0.5]
[1750719214708,20.040202,2404.6,2404.2,0.5]
[1750719214923,30.040202,2404.4,2404.2,0.5]
[1750719215129,20.040202,2404.3,2404.2,0.5]
[1750719215759,20.040202,2404.3,2404.0,0.5]
[1750719216046,30.040202,2404.1,2403.6,2.07540358]
[1750719216250,27.900202,2404.0,2403.9,0.5]
[1750719217421,27.900202,2404.0,2403.6,2.57540358]
[1750719217619,20.040202,2403.9,2403.6,2.57540358]
[1750719217844,20.040202,2403.9,2403.8,0.5]
[1750719218417,20.040202,2403.9,2403.5,2.05174103]
[1750719218652,30.040202,2403.7,2403.5,2.05174103]
[1750719218849,20.040202,2403.7,2403.5,2.05174103]
[1750719219347,20.040202,2403.7,2403.4,2.56661793]
[1750719220413,7.852,2403.6,2403.4,2.56661793]
[1750719220618,20.040202,2403.5,2403.4,2.56661793]
[1750719221172,20.040202,2403.5,2403.4,0.5]
[1750719221383,20.040202,2403.5,2403.4,2.56661793]
[1750719221666,24.040202,2403.5,2403.4,0.5]
[1750719221954,4.0,2403.5,2403.4,0.5]
[1750719222318,4.0,2403.5,2403.4,2.91078865]
[1750719222666,4.0,2403.5,2403.4,2.36078865]
[1750719223364,7.847,2404.2,2403.4,4.42740658]
[1750719223545,20.040202,2404.1,2403.4,4.42740658]
[1750719223731,20.040202,2404.1,2403.9,0.5]
[1750719223932,4.0,2404.0,2403.9,0.5]
[1750719224166,24.040202,2404.0,2403.9,0.5]
[1750719224925,4.0,2404.0,2403.9,2.0671]
[1750719226067,7.84,2404.2,2403.9,2.0671]
[1750719226390,20.040202,2404.1,2403.9,2.0671]
[1750719226539,27.877202,2404.8,2404.5,0.5]
[1750719226739,1.6109,2404.9,2404.5,0.5]
[1750719226740,20.040202,2404.7,2404.5,0.5]
[1750719226930,20.040202,2404.8,2404.7,0.5]
[1750719227530,0.04,2404.9,2404.7,0.5]
[1750719227742,10.04,2404.9,2404.7,0.5]
[1750719227943,0.04,2404.9,2404.8,1.5947]
[1750719228140,0.04,2404.9,2404.8,1.80417]
[1750719228967,20.040202,2404.8,2404.7,0.5]
[1750719230055,7.873,2404.9,2404.7,0.5]
[1750719230253,20.040202,2404.8,2404.7,0.5]
[1750719230574,0.04,2404.9,2404.7,2.0991]
[1750719230729,0.04,2404.9,2404.8,0.20991]
[1750719231263,0.04,2404.9,2404.7,2.0991]
[1750719233191,0.04,2404.9,2404.8,0.55]
[1750719233578,0.04,2404.9,2404.8,2.2165]
[1750719235255,0.04,2404.9,2404.8,1.6665]
[1750719235694,20.040202,2404.8,2403.8,1.6665]
[1750719235892,0.04,2404.9,2404.7,0.5]
[1750719238853,0.04,2404.9,2404.6,1.6665]
[1750719238854,20.040202,2404.8,2404.6,1.6665]
[1750719239058,20.040202,2404.8,2404.7,0.5]
[1750719239287,0.04,2404.9,2404.7,0.5]
[1750719239593,0.04,2404.9,2404.6,1.6665]
[1750719239793,0.04,2404.9,2404.8,0.5]
[1750719239973,20.040202,2404.8,2404.6,1.6665]
[1750719240170,20.040202,2404.8,2404.7,0.5]
[1750719240577,0.04,2404.9,2404.8,0.5]
[1750719240887,0.04,2404.9,2404.6,1.6665]
[1750719240888,20.040202,2404.8,2404.7,0.5]
[1750719241980,24.040202,2404.8,2404.7,0.5]
[1750719242709,31.836202,2404.8,2404.7,0.5]
[1750719242910,20.040202,2404.7,2404.5,0.31112946]
[1750719243362,20.040202,2404.6,2404.5,0.31112946]
[1750719245997,20.040202,2404.7,2404.5,0.31112946]
[1750719246203,27.830202,2404.6,2404.5,0.31112946]
[1750719247424,20.040202,2404.5,2404.3,0.31112946]
[1750719250816,20.040202,2404.7,2404.3,0.31112946]
[1750719250974,20.040202,2404.7,2404.6,0.31112946]
[1750719251578,4.0,2404.8,2404.6,0.31112946]
[1750719251775,20.040202,2404.7,2404.6,0.31112946]
[1750719252010,4.0,2404.8,2404.6,1.87932946]
[1750719253927,4.0,2404.8,2404.6,0.31112946]
[1750719253928,20.040202,2404.7,2404.6,0.31112946]
[1750719254119,21.636402,2404.7,2404.6,0.31112946]
[1750719254318,20.040202,2404.6,2403.8,1.649]
[1750719254520,20.040202,2404.6,2404.5,0.31112946]
[1750719255749,4.0,2404.8,2404.5,1.96012946]
[1750719256097,4.0,2404.8,2404.7,0.31112946]
[1750719260006,24.040202,2404.8,2404.7,0.31112946]
[1750719260535,1.5933,2404.7,2403.5,1.594]
[1750719260701,20.040202,2404.6,2403.6,0.57546986]
[1750719260897,20.040202,2404.6,2403.5,1.594]
[1750719261098,20.040202,2404.6,2404.4,0.31112946]
[1750719261336,1.5211,2404.5,2404.1,0.31112946]
[1750719261552,1.543,2404.2,2404.1,0.31112946]
[1750719261702,29.337202,2404.2,2404.1,0.31112946]
[1750719261906,20.040202,2404.1,2404.0,0.31112946]
[1750719263047,9.297,2404.2,2404.0,0.31112946]
[1750719263210,20.040202,2404.1,2404.0,0.31112946]
[1750719263413,27.791202,2404.4,2404.3,0.31112946]
[1750719265946,20.040202,2404.3,2404.1,0.31112946]
[1750719266152,21.583202,2404.2,2404.1,0.31112946]
[1750719267115,20.040202,2404.2,2404.1,0.31112946]
[1750719267421,7.743,2404.3,2404.1,0.31112946]
[1750719267622,1.543,2404.5,2404.1,0.31112946]
[1750719267623,20.040202,2404.2,2404.1,0.31112946]
[1750719267840,27.782202,2404.4,2404.3,0.31112946]
[1750719268513,4.0,2404.8,2404.6,0.31112946]
[1750719268748,27.781202,2404.7,2404.6,0.31112946]
[1750719269644,7.741,2404.7,2404.6,0.31112946]
[1750719269855,27.781202,2404.7,2404.6,0.31112946]
[1750719270966,27.781202,2404.7,2403.6,1.5138]
[1750719270967,20.040202,2404.6,2403.6,1.5138]
[1750719271265,9.26,2404.7,2403.6,1.5138]
[1750719271266,20.040202,2404.4,2403.6,1.5138]
[1750719271566,27.775202,2404.3,2404.2,0.31112946]
[1750719271861,20.040202,2404.2,2404.1,0.31112946]
[1750719272828,20.040202,2404.2,2403.6,1.5138]
[1750719273068,30.040202,2404.0,2403.9,0.31112946]
[1750719273265,20.040202,2404.0,2403.6,1.5138]
[1750719273431,20.040202,2404.0,2403.9,0.31112946]
[1750719274768,27.768202,2404.0,2403.9,0.31112946]
[1750719276770,20.040202,2403.9,2403.6,0.31112946]
[1750719276933,2.331,2404.2,2403.6,0.31112946]
[1750719276934,20.040202,2403.7,2403.6,0.31112946]
[1750719277140,27.763202,2403.7,2403.6,0.31112946]
[1750719277340,20.040202,2403.6,2403.4,0.31112946]
[1750719277568,2.331,2404.2,2403.4,0.31112946]
[1750719277569,31.648202,2403.5,2403.4,0.31112946]
[1750719277779,31.647202,2403.5,2403.4,0.31112946]
[1750719278080,31.647202,2403.5,2403.2,0.31112946]
[1750719278283,20.040202,2403.4,2403.2,0.31112946]
[1750719278486,27.762202,2403.3,2403.2,0.31112946]
[1750719278854,29.316202,2403.3,2403.2,0.31112946]
[1750719279193,29.316202,2403.3,2402.9,0.31112946]
[1750719279486,20.040202,2403.2,2403.1,0.31112946]
[1750719281789,30.086202,2403.2,2403.1,0.31112946]
[1750719282000,10.046,2403.2,2403.1,0.31112946]
[1750719282514,30.086202,2403.2,2403.1,0.31112946]
[1750719286504,10.046,2403.2,2403.1,0.31112946]
[1750719286695,30.086202,2403.2,2403.1,0.31112946]
[1750719288964,30.075202,2403.2,2403.1,0.31112946]
[1750719290407,30.072202,2403.2,2403.1,0.31112946]
[1750719290964,30.071202,2403.2,2403.1,0.31112946]
[1750719291165,20.040202,2403.1,2402.8,0.31112946]
[1750719291387,30.040202,2402.9,2402.8,0.31112946]
[1750719291598,20.040202,2402.9,2402.8,0.31112946]
[1750719291801,7.697,2403.0,2402.5,0.31112946]
[1750719291802,30.040202,2402.7,2402.5,0.31112946]
[1750719292003,30.040202,2402.5,2402.4,0.31112946]
[1750719292202,27.735202,2402.5,2402.4,0.31112946]
[1750719292406,20.040202,2402.4,2402.3,0.31112946]
[1750719293584,7.695,2402.5,2402.3,0.31112946]
[1750719293925,7.692,2402.4,2402.3,1.94152946]
[1750719294080,1.593,2402.8,2402.3,1.94152946]
[1750719294276,30.0,2402.6,2402.3,1.94152946]
[1750719294476,40.0,2402.4,2402.3,1.94152946]
[1750719294718,30.0,2402.4,2402.3,1.94152946]
[1750719295215,7.69,2403.0,2402.9,0.31112946]
[1750719295382,30.0,2403.3,2403.1,0.31112946]
[1750719295581,37.689,2403.2,2403.1,0.31112946]
[1750719295811,37.688,2403.2,2403.1,0.31112946]
[1750719297312,7.689,2403.2,2403.1,0.31112946]
[1750719298983,7.682,2403.2,2403.1,0.31112946]
[1750719300511,37.682,2403.2,2403.1,0.31112946]
[1750719301320,7.682,2403.2,2403.1,0.31112946]
[1750719302017,37.682,2403.2,2403.1,0.31112946]
[1750719302594,29.9,2403.3,2403.1,0.31112946]
[1750719302818,29.9,2403.3,2402.8,0.31112946]
[1750719303017,40.0,2402.6,2402.4,0.31112946]
[1750719303200,32.292,2402.5,2402.4,0.31112946]
[1750719303924,39.965,2402.5,2402.4,0.31112946]
[1750719305002,9.965,2402.5,2402.4,0.31112946]
[1750719305197,39.965,2402.5,2402.4,0.31112946]
[1750719305919,5.5378,2403.0,2402.4,0.31112946]
[1750719306119,5.5378,2403.0,2402.4,1.88802946]
[1750719306120,2.293,2402.6,2402.4,1.88802946]
[1750719306421,7.668,2402.5,2402.4,1.88802946]
[1750719306619,30.0,2402.9,2402.4,1.88802946]
[1750719307106,30.0,2402.7,2402.4,1.88802946]
[1750719307309,5.5378,2403.0,2402.4,1.88802946]
[1750719307616,30.0,2402.9,2402.6,0.31112946]
[1750719307824,30.0,2402.8,2402.6,0.31112946]
[1750719308025,30.0,2402.9,2402.8,0.31112946]
[1750719308214,37.664,2402.9,2402.8,0.31112946]
[1750719308994,7.664,2402.9,2402.8,0.31112946]
[1750719309430,4.0,2403.0,2402.9,1.5769]
[1750719317069,4.0,2403.0,2402.8,0.31112946]
[1750719317274,4.0,2403.0,2402.1,0.34]
[1750719317275,30.0,2402.9,2402.6,0.31112946]
[1750719317417,30.0,2402.7,2402.6,0.31112946]
[1750719317760,30.0,2402.6,2402.1,0.65112946]
[1750719317926,40.0,2402.4,2402.3,0.31112946]
[1750719318125,7.643,2402.6,2402.5,0.31112946]
[1750719319820,5.5709,2403.0,2402.7,0.31112946]
[1750719320019,30.0,2402.8,2402.7,0.31112946]
[1750719320863,7.64,2402.9,2402.7,0.31112946]
[1750719321055,30.0,2402.8,2402.7,0.31112946]
[1750719321242,30.0,2402.8,2402.3,0.31112946]
[1750719321430,37.637,2402.7,2402.6,0.31112946]
[1750719321827,30.0,2402.6,2402.5,0.31112946]
[1750719322646,30.0,2402.6,2402.5,0.30729085]
[1750719323529,30.0,2402.6,2402.2,0.30729085]
[1750719323731,41.6047,2402.4,2402.2,0.30729085]
[1750719323933,37.632,2402.3,2402.2,0.30729085]
[1750719324129,7.632,2402.3,2402.2,0.30729085]
[1750719324356,30.0,2402.7,2402.6,0.30729085]
[1750719324946,39.924,2402.7,2402.6,0.30729085]
[1750719325138,30.0,2402.6,2402.5,0.30729085]